Cogmind - Beta 13 @@@ ROGUE MODE // 2024.04.29 @ 03:35:47 Player: Wyvric Result: Destroyed by H-66 Slayer with Heavy Assault Rifle Performance ------------- Evolutions (4) 2000 Regions Visited (11) 2200 Robots Destroyed (126) 630 Value Destroyed (5031) 5031 Prototype IDs (2) 40 Alien Tech Used (0) 0 Bonus (4095) 4095 TOTAL SCORE: 13996 Bonus ------- High Alert Combat Kills 756 Follower Combat Kills 570 Entered Garrisons 800 Used RIF Installer 2000 Friendly Fire -31 Cogmind --------- Core Integrity 0/850 Matter 111/300 Energy 99/100 System Corruption 3% Temperature Cool (0) Movement Core (50) Location -6/Garrison Parts ------- > --- POWER (1) -------- (None) > --- PROPULSION (5) --- (None) > --- UTILITY (7) ------ Advanced Melee Analysis Suite > --- WEAPON (2) ------- Axe > --- INVENTORY (5) ---- Combat Airjet Relay Coupler [Hunter] (24) System Restoration Module Coil Gun Hypervelocity Gauss Cannon Peak State ------------ > --- POWER ------------ Light Deuterium Engine > --- PROPULSION ------- Light Treads Light Treads Improved Medium Treads Carbon-fiber Leg Carbon-fiber Leg > --- UTILITY ---------- High-capacity Storage Unit Advanced Melee Analysis Suite Layered Heavy Armor Plating Relay Coupler [Swarmer] Relay Coupler [Sentry] > --- WEAPON ----------- Hypervelocity Gauss Cannon Hypervelocity Gauss Cannon > --- INVENTORY -------- Combat Airjet Combat Airjet Relay Coupler [NC] Relay Coupler [NC] Relay Coupler [NC] Relay Coupler [NC] Relay Coupler [NC] Relay Coupler [Swarmer] Relay Coupler [Swarmer] Relay Coupler [Hunter] Relay Coupler [Hunter] System Restoration Module Coil Gun Hypervelocity Gauss Cannon Hypervelocity Gauss Cannon Axe Axe [Rating: 58] Favorites ----------- Power Improved Ion Engine Engine Improved Ion Engine Power Core Light Nuclear Core Propulsion Light Treads Treads Light Treads Leg Aluminum Leg Wheel Armored Wheel Hover Unit Combat Airjet Flight Unit Flight Unit Utility High-capacity Storage Unit Device Drone Bay Storage High-capacity Storage Unit Processor Advanced Melee Analysis Suite Hackware Relay Coupler [Sentry] Protection Light Armor Plating Weapon Improved Assault Rifle Energy Gun Medium Laser Energy Cannon Phase Cannon Ballistic Gun Improved Assault Rifle Ballistic Cannon Gauss Cannon Launcher Improved Grenade Launcher Special Weapon Remote Datajack Slashing Weapon Scythe Build | -11 -10 -10 -9 -9 -9 -8 -8 -7 -7 -6 -6 ------- Run | Yrd Mat Min Mat Sto Gar Mat Gar Fac Gar Fac Gar Slots Evolved 8 | . . . 2 . . 2 . 2 . 2 . Power . | . . . . . . . . . . . . Propulsion 3 | . . . . . . 2 . . . 1 . Utility 5 | . . . 2 . . . . 2 . 1 . Weapon . | . . . . . . . . . . . . Parts Attached 222 | 6 24 1 17 6 41 17 19 6 60 21 4 Power 16 | 1 3 . 1 . 2 . 1 . 6 2 . Engine 11 | 1 3 . 1 . 2 . 1 . 2 1 . Core 5 | . . . . . . . . . 4 1 . Reactor . | . . . . . . . . . . . . Propulsion 68 | 2 9 . 3 4 8 7 5 1 17 11 1 Treads 30 | 2 . . 3 2 6 7 1 . 3 6 . Leg 22 | . 7 . . . . . 3 1 6 5 . Wheel 14 | . 2 . . 2 2 . . . 8 . . Hover 1 | . . . . . . . . . . . 1 Flight 1 | . . . . . . . 1 . . . . Utility 58 | 1 5 . 11 2 16 2 6 2 9 4 . Device 18 | . 2 . 4 2 9 1 . . . . . Storage 9 | 1 2 . 3 . . . 2 . 1 . . Processor 1 | . . . . . . . . . . 1 . Hackware 12 | . . . . . . . 4 2 6 . . Protection 18 | . 1 . 4 . 7 1 . . 2 3 . Artifact . | . . . . . . . . . . . . Weapon 80 | 2 7 1 2 . 15 8 7 3 28 4 3 Energy Gun 5 | 1 2 . . . . . . . 2 . . Energy Cannon 3 | . . . . . . . . . 3 . . Ballistic Gun 19 | 1 5 1 2 . 5 . . . 5 . . Ballistic Cannon 19 | . . . . . 7 3 1 . 5 2 1 Launcher 9 | . . . . . 2 4 2 . 1 . . Special Weapon 10 | . . . . . . . 1 2 7 . . Impact Weapon . | . . . . . . . . . . . . Slashing Weapon 15 | . . . . . 1 1 3 1 5 2 2 Piercing Weapon . | . . . . . . . . . . . . Special Melee Weapon . | . . . . . . . . . . . . Unidentified Prototypes 2 | . 2 . . . . . . . . . . Parts Lost 76 | . 7 . . . 15 8 5 2 17 8 14 Power 9 | . 2 . . . . 1 . . 4 1 1 Propulsion 31 | . 2 . . . 2 4 4 2 7 4 6 Utility 25 | . 1 . . . 10 3 . . 3 3 5 Weapon 11 | . 2 . . . 3 . 1 . 3 . 2 Highest Loss Streak 14 | . 4 . . . 7 7 4 2 6 6 14 To Critical Strikes . | . . . . . . . . . . . . Average Slot Usage (%) 90 | . 94 100 99 100 99 89 51 77 87 82 60 Engine 7 | . 12 14 11 11 11 7 3 7 1 1 3 Core 1 | . . . . . . . . . 4 4 . Treads 11 | . 10 . 17 7 19 26 10 2 3 11 9 Leg 10 | . 15 28 4 . . . 6 26 18 19 6 Wheel 2 | . 1 . . 14 2 7 . . 4 . . Device 8 | . 9 . 12 20 18 15 . . . . . Storage 9 | . 14 14 11 11 11 7 4 7 7 6 4 Hackware 9 | . . . . . . . 15 23 31 21 9 Protection 8 | . 2 14 20 12 14 7 . . 1 2 4 Energy Gun 1 | . 9 2 . . . . . . 1 . . Ballistic Gun 11 | . 18 25 22 22 14 . . . 2 . . Ballistic Cannon 3 | . . . . . 5 11 . . 3 3 7 Slashing Weapon 2 | . . . . . 2 3 7 5 3 6 4 Naked Turns 1 | . . . . . . . 1 . . . . Heaviest Build 85 | 11 36 36 70 68 75 71 52 55 65 85 85 Greatest Support 70 | 40 40 20 40 40 40 60 65 50 55 70 70 Greatest Overweight (x) 5 | . 1 1 1 2 5 5 5 1 4 1 2 Average Overweight (x) 1 | . . 1 . 1 2 3 . . . . . Largest Inventory Capacity 20 | 8 15 15 20 20 20 20 20 20 20 20 20 Average Capacity 18 | 6 13 15 18 20 20 17 13 20 20 20 16 Most Carried 20 | 7 15 15 20 20 20 20 13 18 20 20 17 Average Carried 16 | 4 11 15 18 19 19 17 6 15 19 19 14 Final Capacity 20 | 8 15 15 20 20 20 5 20 20 20 20 5 Final Carried 20 | 6 15 15 20 20 20 5 13 17 19 17 5 Class Distribution -------------------- 47% | Mutant 26% | Scavenger-Mutant 24% | Bothacker-Mutant Dominant Class ---------------- Mutant | -10/Materials Mutant | -10/Mines Mutant | -9/Materials Mutant | -9/Storage Scavenger-Mutant | -9/Garrison Mutant | -8/Materials Bothacker-Mutant | -8/Garrison Bothacker-Mutant | -7/Factory Bothacker-Mutant | -7/Garrison Scavenger-Mutant | -6/Factory Scavenger-Mutant | -6/Garrison Resources | -11 -10 -10 -9 -9 -9 -8 -8 -7 -7 -6 -6 ----------- Run | Yrd Mat Min Mat Sto Gar Mat Gar Fac Gar Fac Gar Matter Collected 3943 | 189 276 107 254 150 1034 96 353 72 1068 283 61 Remotely . | . . . . . . . . . . . . Salvage Created 4308 | . 495 83 331 203 1369 381 104 23 845 375 99 Parts 230 | . 31 9 22 11 77 15 5 . 42 13 5 Haulers Intercepted . | . . . . . . . . . . . . Recyclers Shooed 1 | . . . . . . . . . . 1 . Parts Field Recycled . | . . . . . . . . . . . . Retrieved Matter . | . . . . . . . . . . . . Parts Self-Destructed . | . . . . . . . . . . . . Prevented . | . . . . . . . . . . . . Kills | -11 -10 -10 -9 -9 -9 -8 -8 -7 -7 -6 -6 ------- Run | Yrd Mat Min Mat Sto Gar Mat Gar Fac Gar Fac Gar Combat Hostiles Destroyed 128 | . 16 6 9 4 39 12 6 1 20 10 5 Melee 15 | . . . . . . . 5 1 . 5 4 Guns 83 | . 16 6 9 4 32 . . . 16 . . Cannons 17 | . . . . . 4 3 . . 4 5 1 AOE 13 | . . . . . 3 9 1 . . . . Classes Destroyed 11 | . 2 . 1 . 2 1 . . . 4 1 Worker 1 | . . . . . . . . . . 1 . Operator 1 | . . . . . . . . . . 1 . Swarmer 51 | . 6 6 3 . 11 . 5 1 15 . 4 Grunt 43 | . 10 . 2 1 12 9 1 . 5 3 . Brawler 2 | . . . . . 1 1 . . . . . Duelist 4 | . . . . . 4 . . . . . . Sentry 20 | . . . 4 3 11 1 . . . 1 . Demolisher 2 | . . . . . . . . . . 2 . Specialist 1 | . . . . . . 1 . . . . . Programmer 1 | . . . . . . . . . . . 1 Assembled 4 | . . . . . . . . . . 4 . Best Kill Streak 7 | . 4 3 3 2 5 7 3 1 4 3 3 Combat Bots Only 7 | . 4 3 3 2 5 7 3 1 4 3 3 Max Kills in Single Turn 3 | . 1 2 1 1 3 3 1 1 2 1 1 Gunslinging 1 | . . 1 . . 1 . . . . . . Exploded 3 | . . . . . 3 3 1 . . . . Melee 1 | . . . . . . . 1 1 . 1 1 Uniques/NPCs Destroyed . | . . . . . . . . . . . . Combat | -11 -10 -10 -9 -9 -9 -8 -8 -7 -7 -6 -6 -------- Run | Yrd Mat Min Mat Sto Gar Mat Gar Fac Gar Fac Gar Hostile Shots Fired 1278 | . 97 14 44 20 241 120 119 30 164 102 327 Missed 330 | . 25 2 12 3 54 40 26 14 47 36 71 Damage Taken 11815 | . 742 102 371 235 2459 1406 842 336 1935 1144 2243 Core 2060 | . 122 16 29 15 184 99 382 53 297 201 662 Absorbed by Shields 845 | . . . . . 146 . 61 . . . 638 Core Remaining (%) 49 | 100 . 44 . . 43 . 12 . 50 . . Volleys Fired 310 | . 49 6 22 7 102 15 8 11 66 14 10 Largest 2 | . 2 2 2 2 2 2 1 1 2 2 2 Hottest 170 | . 70 79 46 46 96 96 48 5 170 122 122 Shots Fired 566 | . 97 12 44 14 198 26 8 11 108 28 20 Gun 402 | . 97 12 44 14 166 . . . 69 . . Cannon 125 | . . . . . 30 18 1 . 28 28 20 Launcher 12 | . . . . . 2 8 2 . . . . Special 27 | . . . . . . . 5 11 11 . . Kinetic 455 | . 56 9 44 14 196 18 1 . 69 28 20 Thermal 72 | . 41 3 . . . . . . 28 . . Explosive 12 | . . . . . 2 8 2 . . . . Electromagnetic . | . . . . . . . . . . . . Robot Hit Streak 24 | . 9 7 16 12 24 12 3 2 5 9 8 Robot Miss Streak 6 | . 4 2 3 1 4 1 1 1 6 2 2 Penetration Max . | . . . . . . . . . . . . Secondary Targets 14 | . 3 2 1 . 6 . . . 2 . . Max Gunslinging Chain 1 | . 1 1 1 . 1 . . . 1 . . Shots Hit Robots 438 | . 61 7 32 12 140 16 18 9 85 35 23 Core Hits 211 | . 29 6 14 7 60 24 4 . 42 17 8 Critical Kills 5 | . . . . . . . . . 1 3 1 Critical Parts Destroyed 13 | . . . . . 1 . . . 1 7 4 Critical Strikes 31 | . 2 . . . 3 1 . . 5 14 6 Burn 2 | . 2 . . . . . . . . . . Destroy 18 | . . . . . 1 . . . 2 10 5 Blast 3 | . . . . . 2 1 . . . . . Sever 8 | . . . . . . . . . 3 4 1 Melee Attacks 119 | . . . . . 4 1 30 3 42 26 13 Impact . | . . . . . . . . . . . . Slashing 119 | . . . . . 4 1 30 3 42 26 13 Piercing . | . . . . . . . . . . . . Sneak Attacks 6 | . . . . . . . . 3 . 3 . Combat Hostiles 3 | . . . . . . . . 3 . . . Follow-up Attacks 3 | . . . . . . . . . . 2 1 Damage Inflicted 9349 | . 599 113 473 177 2577 1233 483 184 1957 1026 527 Guns 3987 | . 599 113 473 177 1865 . . . 760 . . Cannons 1615 | . . . . . 503 268 29 . 245 304 266 Explosions 1208 | . . . . . 209 943 56 . . . . Melee 2497 | . . . . . . . 398 184 952 722 241 Ramming 42 | . . . . . . 22 . . . . 20 Kinetic 4856 | . 301 96 473 177 2368 268 29 . 574 304 266 Thermal 746 | . 298 17 . . . . . . 431 . . Explosive 1208 | . . . . . 209 943 56 . . . . Electromagnetic . | . . . . . . . . . . . . Impact . | . . . . . . . . . . . . Slashing 2497 | . . . . . . . 398 184 952 722 241 Piercing . | . . . . . . . . . . . . Highest Corruption 3 | . . . . . . . 2 . . . 3 Average Corruption 2 | . . . . . . . 2 . . . 2 Corruption Purged . | . . . . . . . . . . . . Corruption Blocked . | . . . . . . . . . . . . Effects 4 | . . . . . . . 3 . . . 1 Message Errors 1 | . . . . . . . 1 . . . . Heat Flow Errors 1 | . . . . . . . 1 . . . . Data Loss (minor) 1 | . . . . . . . 1 . . . . Data Loss (major) 1 | . . . . . . . . . . . 1 Overload Shots . | . . . . . . . . . . . . Overflow Damage 277 | . . . . . 5 8 57 93 67 45 2 Projectiles 10 | . . . . . 1 . 9 . . . . Explosions 12 | . . . . . 4 8 . . . . . Melee 255 | . . . . . . . 48 93 67 45 2 Knockbacks 11 | . . . . . 4 1 1 . . 4 1 Impact 1 | . . . . . . 1 . . . . . Kinetic 10 | . . . . . 4 . 1 . . 4 1 Secondary . | . . . . . . . . . . . . Self-Inflicted Damage 59 | . . . . . 47 12 . . . . . Shots 2 | . . . . . 1 1 . . . . . Rammed 6 | . . . . . . 2 . . . . 4 Targets Rammed 7 | . . . . . . 2 . . . . 5 Kicked . | . . . . . . . . . . . . Crushed 1 | . . . . . . . . . . . 1 Highest Temperature 399 | . 254 90 72 10 315 99 164 . 201 315 399 Average Temperature 83 | . 65 47 32 4 96 31 79 . 61 113 175 Received Heat Transfer 2590 | . 270 . 123 90 843 603 117 24 186 108 226 Effects 7 | . 1 . . . 2 . . . 1 . 3 Shutdowns 1 | . . . . . 1 . . . . . . Energy Bleed 2 | . . . . . 1 . . . 1 . . Interference 3 | . 1 . . . . . . . . . 2 Short Circuit 1 | . . . . . . . . . . . 1 Siege Activations . | . . . . . . . . . . . . Robots Corrupted . | . . . . . . . . . . . . Combat Hostiles . | . . . . . . . . . . . . Parts Fried . | . . . . . . . . . . . . Impact Corruptions . | . . . . . . . . . . . . Robots Melted . | . . . . . . . . . . . . Combat Hostiles . | . . . . . . . . . . . . Parts Melted 1 | . . . . . . . . . 1 . . Heat Transferred 1907 | . 1036 37 . . . . . . 834 . . Parts Sabotaged . | . . . . . . . . . . . . Parts Stolen . | . . . . . . . . . . . . Parts Stripped . | . . . . . . . . . . . . Power Chain Reactions . | . . . . . . . . . . . . Alert | -11 -10 -10 -9 -9 -9 -8 -8 -7 -7 -6 -6 ------- Run | Yrd Mat Min Mat Sto Gar Mat Gar Fac Gar Fac Gar Peak Influence 1455 | . 406 114 124 158 1455 864 609 321 871 516 319 Initial 709 | . . 44 . 52 2 709 376 319 126 457 254 Average 430 | . 215 42 61 38 770 690 540 302 542 433 276 Maximum Alert Level 4 | . 2 . . . 4 3 2 1 3 2 1 Low Security (%) 32 | 100 25 100 100 100 6 . . 10 10 . . Level 1 15 | . 73 . . . 4 . 5 89 10 28 100 Level 2 29 | . 1 . . . 35 40 94 . 43 71 . Level 3 18 | . . . . . 35 59 . . 35 . . Level 4 4 | . . . . . 18 . . . . . . Level 5 . | . . . . . . . . . . . . High Security . | . . . . . . . . . . . . Max Security . | . . . . . . . . . . . . Squads Dispatched 17 | . 4 . 2 1 . 7 . 1 . 2 . Investigation 7 | . 2 . 2 . . 3 . . . . . Extermination . | . . . . . . . . . . . . Reinforcement 8 | . 2 . . 1 . 4 . . . 1 . Assault . | . . . . . . . . . . . . Garrison 2 | . . . . . . . . 1 . 1 . Intercept . | . . . . . . . . . . . . Searches Triggered . | . . . . . . . . . . . . Construction Impeded . | . . . . . . . . . . . . Haulers Reinforced . | . . . . . . . . . . . . Active Scanning Responses . | . . . . . . . . . . . . Cargo Convoy Interrupts . | . . . . . . . . . . . . Alert ID Control Effect 13 | . . . . . . . 2 1 10 . . Stealth | -11 -10 -10 -9 -9 -9 -8 -8 -7 -7 -6 -6 --------- Run | Yrd Mat Min Mat Sto Gar Mat Gar Fac Gar Fac Gar Distress Signals 7 | . 2 . 1 . 1 2 . . . 1 . Communications Jammed . | . . . . . . . . . . . . Distress Signals . | . . . . . . . . . . . . Times Spotted 217 | . 26 6 13 4 48 25 12 8 43 17 15 Peak Tracking Total 10 | . 5 3 3 3 7 10 5 4 8 3 8 Tactical Retreats 16 | . 3 . . . 6 2 1 1 1 1 1 Traps | -11 -10 -10 -9 -9 -9 -8 -8 -7 -7 -6 -6 ------- Run | Yrd Mat Min Mat Sto Gar Mat Gar Fac Gar Fac Gar Traps Triggered 27 | . 2 . 1 . 4 2 5 . 9 3 1 Indirectly . | . . . . . . . . . . . . Trap Hack Attempts . | . . . . . . . . . . . . Triggered . | . . . . . . . . . . . . Disarmed . | . . . . . . . . . . . . Reprogrammed . | . . . . . . . . . . . . Reused . | . . . . . . . . . . . . Traps Extracted . | . . . . . . . . . . . . Installed . | . . . . . . . . . . . . Triggered . | . . . . . . . . . . . . Machines | -11 -10 -10 -9 -9 -9 -8 -8 -7 -7 -6 -6 ---------- Run | Yrd Mat Min Mat Sto Gar Mat Gar Fac Gar Fac Gar Machines Disabled 7 | . . . . . . . 3 1 3 . . Max in Single Turn 1 | . . . . . . . 1 . 1 . . Garrison Relay 5 | . . . . . . . 2 . 3 . . Machines Repaired . | . . . . . . . . . . . . Machines Dismantled . | . . . . . . . . . . . . Machines Sabotaged . | . . . . . . . . . . . . Overloaded Fab Kills . | . . . . . . . . . . . . Hacking | -11 -10 -10 -9 -9 -9 -8 -8 -7 -7 -6 -6 --------- Run | Yrd Mat Min Mat Sto Gar Mat Gar Fac Gar Fac Gar Machines Accessed 35 | . 5 . 6 5 5 7 1 3 2 1 . Terminals 29 | . 4 . 6 4 5 6 1 1 2 . . Fabricators . | . . . . . . . . . . . . Repair Stations . | . . . . . . . . . . . . Recycling Units 1 | . 1 . . . . . . . . . . Scanalyzers 1 | . . . . . . . . 1 . . . Garrison Access 4 | . . . . 1 . 1 . 1 . 1 . Total Hacks 77 | . 13 . 15 11 8 19 2 5 3 1 . Successful 27 | . 4 . 3 4 3 8 . 3 1 1 . Failed 50 | . 9 . 12 7 5 11 2 2 2 . . Catastrophic 15 | . 2 . 5 2 2 3 1 . . . . Database Lockouts . | . . . . . . . . . . . . Manual 41 | . 7 . 10 7 . 15 . 2 . . . Terminals 68 | . 11 . 15 9 8 18 2 2 3 . . Fabricators . | . . . . . . . . . . . . Repair Stations . | . . . . . . . . . . . . Recycling Units 2 | . 2 . . . . . . . . . . Scanalyzers 2 | . . . . . . . . 2 . . . Garrison Access 5 | . . . . 2 . 1 . 1 . 1 . Terminal Hacks 20 | . 3 . 3 3 3 6 . 1 1 . . Part Schematic 4 | . 2 . . 2 . . . . . . . Open Door 2 | . . . . 1 1 . . . . . . Branch Access Points 1 | . . . 1 . . . . . . . . Terminal Index 1 | . . . . . . 1 . . . . . Unreport Threat 3 | . . . . . . 2 . 1 . . . Zone Layout 6 | . 1 . 2 . . 3 . . . . . Garrison Registry 1 | . . . . . 1 . . . . . . Patrol Navigation 1 | . . . . . 1 . . . . . . Security Stations 1 | . . . . . . . . . 1 . . Fabricator Hacks . | . . . . . . . . . . . . Repair Station Hacks . | . . . . . . . . . . . . Recycling Unit Hacks . | . . . . . . . . . . . . Scanalyzer 1 | . . . . . . . . 1 . . . Insert Component 1 | . . . . . . . . 1 . . . Garrison Access Hacks 4 | . . . . 1 . 1 . 1 . 1 . Unlock Access 4 | . . . . 1 . 1 . 1 . 1 . Unauthorized Hacks 2 | . 1 . . . . 1 . . . . . Terminals 1 | . . . . . . 1 . . . . . Botnet 1 | . . . . . . 1 . . . . . Fabricators . | . . . . . . . . . . . . Repair Stations . | . . . . . . . . . . . . Recycling Units 1 | . 1 . . . . . . . . . . Tunnel 1 | . 1 . . . . . . . . . . Scanalyzers . | . . . . . . . . . . . . Garrison Access . | . . . . . . . . . . . . Data Cores Recovered . | . . . . . . . . . . . . Used . | . . . . . . . . . . . . Hacking Detections 29 | . 5 . 6 3 3 6 1 3 2 . . Full Trace Events 6 | . 2 . 1 . 2 1 . . . . . Feedback Events . | . . . . . . . . . . . . Feedback Blocked . | . . . . . . . . . . . . Robot Schematics Acquired . | . . . . . . . . . . . . Robots Built . | . . . . . . . . . . . . Authchips . | . . . . . . . . . . . . Time . | . . . . . . . . . . . . Total Robot Build Rating . | . . . . . . . . . . . . Part Schematics Acquired 4 | . 2 . . 2 . . . . . . . Parts Built . | . . . . . . . . . . . . Authchips . | . . . . . . . . . . . . Time . | . . . . . . . . . . . . Total Part Build Rating . | . . . . . . . . . . . . Parts Repaired . | . . . . . . . . . . . . Time . | . . . . . . . . . . . . Parts Recycled . | . . . . . . . . . . . . Recycled Matter . | . . . . . . . . . . . . Retrieved Matter . | . . . . . . . . . . . . Retrieved Components . | . . . . . . . . . . . . Parts Scanalyzed . | . . . . . . . . . . . . Part Schematics Acquired . | . . . . . . . . . . . . Parts Damaged . | . . . . . . . . . . . . Bothacking | -11 -10 -10 -9 -9 -9 -8 -8 -7 -7 -6 -6 ------------ Run | Yrd Mat Min Mat Sto Gar Mat Gar Fac Gar Fac Gar Used RIF Installer 4 | . . . . . 2 . 1 . 1 . . Coupler Efficiency 1 | . . . . . . . . . 1 . . Zone Cloak 1 | . . . . . 1 . . . . . . Alert ID Control 1 | . . . . . . . 1 . . . . Robots Hacked 16 | . . . . . . . 3 6 7 . . Non-combat . | . . . . . . . . . . . . Combat 16 | . . . . . . . 3 6 7 . . Robot Hacks Applied 17 | . . . . . . . 4 6 7 . . amplify_resonance 1 | . . . . . . . . . 1 . . disable_weapons 1 | . . . . . . . 1 . . . . overwrite_iff 6 | . . . . . . . 2 3 1 . . streamctrl_high 1 | . . . . . . . . 1 . . . formatsys_high 8 | . . . . . . . 1 2 5 . . Relay Couplers Released 20 | . . . . . . . 8 . 12 . . Machine Destruction 20 | . . . . . . . 8 . 12 . . Attached 11 | . . . . . . . 4 1 6 . . Fabnet Peak Effective % . | . . . . . . . . . . . . Robots Rewired . | . . . . . . . . . . . . Allies Hacked . | . . . . . . . . . . . . Hacks Repelled . | . . . . . . . . . . . . Allies | -11 -10 -10 -9 -9 -9 -8 -8 -7 -7 -6 -6 -------- Run | Yrd Mat Min Mat Sto Gar Mat Gar Fac Gar Fac Gar Total Allies 19 | . . 3 . . 2 . 2 6 6 . . Largest Group 3 | . . 3 2 . 2 . 2 2 3 1 . Highest-Rated Group 100 | . . 40 32 . 50 . 32 64 100 32 . Highest-Rated Ally 36 | . . 16 16 . 25 . 16 32 36 32 . Total Orders 49 | . . . . 27 15 5 . . 2 . . STAY 9 | . . . . 8 . . . . 1 . . FOLLOW 1 | . . . . . . . . . 1 . . EXPLORE 24 | . . . . 11 9 4 . . . . . RETURN 15 | . . . . 8 6 1 . . . . . Ally Attacks 94 | . . 5 10 . 10 . 22 7 38 2 . Total Damage 2195 | . . 12 84 . 256 . 244 315 1231 53 . Kills 22 | . . . 2 . 1 . 3 1 15 . . Allies Corrupted . | . . . . . . . . . . . . Allies Melted . | . . . . . . . . . . . . Intel | -11 -10 -10 -9 -9 -9 -8 -8 -7 -7 -6 -6 ------- Run | Yrd Mat Min Mat Sto Gar Mat Gar Fac Gar Fac Gar Robot Analysis Total . | . . . . . . . . . . . . Derelict Logs Recovered 2 | . . 2 . . . . . . . . . Drone Launches 45 | . . . . 9 31 5 . . . . . Drone Recoveries 32 | . . . . 6 23 3 . . . . . Exploration | -11 -10 -10 -9 -9 -9 -8 -8 -7 -7 -6 -6 ------------- Run | Yrd Mat Min Mat Sto Gar Mat Gar Fac Gar Fac Gar Turns Passed 10280 | 113 853 904 1178 496 2501 432 798 320 1990 559 136 Spaces Moved 4707 | 62 352 463 444 157 963 288 540 155 994 253 36 Core 354 | 4 . . . . . 108 228 . . . 14 Treads 1475 | 58 115 . 332 65 648 2 109 . 25 103 18 Legs 1892 | . 219 463 112 . . . 97 155 696 150 . Wheels 876 | . 18 . . 92 315 178 . . 273 . . Hover 4 | . . . . . . . . . . . 4 Flight 106 | . . . . . . . 106 . . . . Fastest Speed 40 | 50 100 190 160 130 165 50 40 122 105 120 50 Average Speed 172 | 152 175 190 225 175 215 122 107 179 154 153 152 Slowest Speed 470 | 160 190 190 240 240 240 240 470 195 270 240 320 Overloaded Moves . | . . . . . . . . . . . . Propulsion Burnouts . | . . . . . . . . . . . . Robots Hopped . | . . . . . . . . . . . . Cave-ins Triggered . | . . . . . . . . . . . . Exploration Rate (%) 42 | 6 61 99 47 39 75 55 36 6 68 8 8 Regions Visited 11 Branch Regions 2 Pre-discovered Areas 2 | . 1 1 . . . . . . . . . Known Exits Taken 5 | . . . 1 1 . 1 . 1 . 1 . Unknown Exits Taken 3 | 1 1 1 . . . . . . . . . Scrap Searched 1 | . . 1 . . . . . . . . . Spaces Dug 12 | . . . . . . 7 . . . 5 . Terrain Destroyed 101 | . . . . . 21 56 17 . 1 5 1 Melee 6 | . . . . . . 1 . . . 5 . Projectile 12 | . . . . . 2 8 . . 1 . 1 AOE 83 | . . . . . 19 47 17 . . . . Terrain Rammed . | . . . . . . . . . . . . Walls Destroyed . | . . . . . . . . . . . . Machines Disabled . | . . . . . . . . . . . . Actions | -11 -10 -10 -9 -9 -9 -8 -8 -7 -7 -6 -6 --------- Run | Yrd Mat Min Mat Sto Gar Mat Gar Fac Gar Fac Gar Total 6122 | 78 502 475 577 366 1182 334 708 187 1292 352 69 Wait 406 | 4 30 6 73 180 27 1 33 4 18 29 1 Move 4694 | 61 351 462 443 156 961 287 538 155 992 252 36 Hop . | . . . . . . . . . . . . Pick Up 168 | 7 30 . 13 8 28 8 20 6 40 8 . Fast Attach 50 | 5 8 . 2 1 4 1 8 . 15 6 . Attach 81 | 1 9 . 2 . 17 8 9 4 20 9 2 Detach 11 | . . . . . . . 3 2 5 1 . Swap 91 | . 7 1 13 5 20 8 2 2 25 6 2 Drop 98 | . 18 . 9 9 16 3 6 . 32 3 2 Fire 310 | . 49 6 22 7 102 15 8 11 66 14 10 Melee 115 | . . . . . 4 1 30 3 42 24 11 Ram . | . . . . . . . . . . . . Kick . | . . . . . . . . . . . . Crush 7 | . . . . . . 2 . . . . 5 Escape Stasis 89 | . . . . . 2 . 51 . 36 . . Rewire 2 | . . . . . 1 . . . 1 . . Trap . | . . . . . . . . . . . . Miscellaneous . | . . . . . . . . . . . . Route ------- -11/Scrapyard -10/Materials (discovered 3 exits: *Mat x2 / [*Min]) -10/Mines (discovered 2 exits: *Mat x2) -9/Materials (discovered 5 exits: *Mat x2 / Min / *Sto x2) -9/Storage -9/Garrison (discovered 3 exits: *Mat x3) -8/Materials (discovered 2 exits: *Fac / Gar) -8/Garrison (discovered 2 exits: *Fac x2) -7/Factory -7/Garrison (discovered 3 exits: *Fac x3) -6/Factory (discovered 2 exits: [*Low] / Gar) -6/Garrison History --------- Turn | Location | Event 11 | -11/Scrapyard | Discovered new exit (range 15) 114 | -11/Scrapyard | Entered Materials 309 | -10/Materials | Build established: Mutant 401 | -10/Materials | Discovered new exit (range 15) 541 | -10/Materials | Lost 4 parts (1n1u2w) 765 | -10/Materials | Discovered new exit (range 6) 940 | -10/Materials | Discovered new exit (range 16) 967 | -10/Materials | Entered Mines 973 | -10/Mines | Learned Materials terminal intel 977 | -10/Mines | Learned location of Storage (-9) 1142 | -10/Mines | Core integrity fell below 50% 1232 | -10/Mines | Discovered new exit (range 13) 1557 | -10/Mines | Assisted by bots powering up and referring to "LRC-V3" 1655 | -10/Mines | Discovered new exit (range 5) 1871 | -10/Mines | Entered Materials 1871 | -9/Materials | Accompanied by 2 allies 1871 | -9/Materials | Evolved 2 slots: Utility x2 1872 | -9/Materials | Loaded intel: 12 terminal locations 2386 | -9/Materials | Discovered new exit (range 9) 2760 | -9/Materials | Identified exit to Mines 2760 | -9/Materials | Identified exit to Storage 2875 | -9/Materials | Discovered new exit (range 15) 3049 | -9/Materials | Entered Storage 3543 | -9/Storage | Identified exit to Garrison 3545 | -9/Storage | Entered Garrison 3547 | -9/Garrison | Triggered checkpoint 3583 | -9/Garrison | Triggered checkpoint 3585 | -9/Garrison | Triggered checkpoint 3700 | -9/Garrison | Rescued a captive Derelict 3707 | -9/Garrison | Rescued a captive Derelict 3791 | -9/Garrison | Triggered checkpoint 3821 | -9/Garrison | Triggered checkpoint 4089 | -9/Garrison | Triggered checkpoint 4145 | -9/Garrison | Lost 3 allies 4176 | -9/Garrison | Lost 7 parts (2n3u2w) 4274 | -9/Garrison | Discovered new exit (range 8) 4359 | -9/Garrison | Triggered checkpoint 4433 | -9/Garrison | Build established: Scavenger-Mutant 4637 | -9/Garrison | Discovered new exit (range 29) 4675 | -9/Garrison | Triggered checkpoint 4677 | -9/Garrison | Triggered checkpoint 4918 | -9/Garrison | Discovered new exit (range 16) 5103 | -9/Garrison | Triggered checkpoint 5122 | -9/Garrison | Core integrity fell below 50% 5161 | -9/Garrison | Lost 4 parts (3u1w) 5589 | -9/Garrison | Discovered new exit (range 76) 5589 | -9/Garrison | Discovered new exit (range 21) 5589 | -9/Garrison | Discovered new exit (range 72) 5725 | -9/Garrison | Installed Relay Interface Framework 5959 | -9/Garrison | Expanded RIF knowledge: Zone Cloak 6046 | -9/Garrison | Entered Materials 6046 | -8/Materials | Evolved 2 slots: Propulsion x2 6183 | -8/Materials | Discovered new exit (range 41) 6295 | -8/Materials | Destroyed 7 combat bots 6413 | -8/Materials | Released all parts (6) 6442 | -8/Materials | Lost 7 parts (1p4n2u) 6471 | -8/Materials | Build established: Mutant 6474 | -8/Materials | Identified exit to Garrison 6478 | -8/Materials | Entered Garrison 6494 | -8/Garrison | Expanded RIF knowledge: Alert ID Control 6516 | -8/Garrison | Triggered checkpoint 6523 | -8/Garrison | Garrison Relay disabled 6608 | -8/Garrison | Triggered checkpoint 6663 | -8/Garrison | Triggered checkpoint 6709 | -8/Garrison | Core integrity fell below 50% 6723 | -8/Garrison | Lost 4 parts (3n1w) 6779 | -8/Garrison | Garrison Relay disabled 6795 | -8/Garrison | Discovered new exit (range 12) 6910 | -8/Garrison | Discovered new exit (range 10) 6974 | -8/Garrison | Triggered checkpoint 7173 | -8/Garrison | Build established: Bothacker-Mutant 7209 | -8/Garrison | Core integrity fell below 20% 7276 | -8/Garrison | Entered Factory 7276 | -7/Factory | Evolved 2 slots: Utility x2 7596 | -7/Factory | Identified exit to Garrison 7596 | -7/Factory | Entered Garrison 7596 | -7/Garrison | Accompanied by 2 allies 7648 | -7/Garrison | Triggered checkpoint 7660 | -7/Garrison | Garrison Relay disabled 7809 | -7/Garrison | Garrison Relay disabled 7880 | -7/Garrison | Triggered checkpoint 8032 | -7/Garrison | Triggered checkpoint 8058 | -7/Garrison | Lost 6 parts (2p2n1u1w) 8147 | -7/Garrison | Discovered new exit (range 8) 8206 | -7/Garrison | Triggered checkpoint 8220 | -7/Garrison | Triggered checkpoint 8273 | -7/Garrison | Lost 5 parts (1p3n1u) 8334 | -7/Garrison | Triggered checkpoint 8382 | -7/Garrison | Lost 4 parts (1p2n1w) 8402 | -7/Garrison | Garrison Relay disabled 8471 | -7/Garrison | Discovered new exit (range 12) 8657 | -7/Garrison | Discovered new exit (range 10) 8722 | -7/Garrison | Triggered checkpoint 8876 | -7/Garrison | Learned Factory security intel 9252 | -7/Garrison | Triggered checkpoint 9352 | -7/Garrison | Triggered checkpoint 9540 | -7/Garrison | Expanded RIF knowledge: Coupler Efficiency 9543 | -7/Garrison | Build established: Scavenger-Mutant 9586 | -7/Garrison | Entered Factory 9586 | -6/Factory | Accompanied by 1 ally 9586 | -6/Factory | Evolved 2 slots: Propulsion x1, Utility x1 9818 | -6/Factory | Discovered new exit (range 13) 9947 | -6/Factory | Assembled infested ambush trap array 10021 | -6/Factory | Lost 6 parts (1p2n3u) 10064 | -6/Factory | Identified exit to Garrison 10102 | -6/Factory | Garrison activated, responded to threat 10145 | -6/Factory | Entered Garrison 10199 | -6/Garrison | Triggered checkpoint 10248 | -6/Garrison | Core integrity fell below 50% 10266 | -6/Garrison | Core integrity fell below 20% 10281 | -6/Garrison | Destroyed by H-66 Slayer with Heavy Assault Rifle Last Messages --------------- 10249_ P-60 Hacker destroyed. 10253_ Dropped Hcp. Storage Unit. 10253_ Hyp. Gauss Cannon crushed and broken. 10253_ Relay Coupler [NC] crushed and broken. 10253_ Relay Coupler [Hunter] crushed and broken. 10256_ S-27 Virus destroyed. 10258_ Penetrated by Slug. 10262_ Destroyed Phase Shifter. 10262_ Axe follow-up attack on H-66 Slayer. 10264_ Slug penetrates Wall. 10266_ Acquired 43 matter. 10266_ S-27 Virus destroyed. 10267_ Acquired 17 matter. 10267_ Slug penetrates Wall. 10271_ Dropped Axe. 10272_ Penetrated by Slug. 10272_ Cmb. Airjet destroyed. 10281_ Penetrated by Slug. Map ----- +----------------------------------------------------+ | ?????????????????????????????????????????????????? | | ?????????????????????????????????????????????????? | | ?????????????????????????????????????????????????? | | ?????????????????????????????????????????????????? | | ?????????????????????????????????????????????????? | | ?????????????????? ??????????????????????????????? | | ?????????????????? ??????????????????????????????? | | ?????????????????? ??????????????????????????????? | | ?????????????????? ??????????????????????????????? | | ?????????????????? ??????????????????????????????? | | ?????????????????? ??????????????????????????????? | | ?????????????????? ??????????????????????????????? | | ?????????????????# #?????????????????????????????? | | ???????????????### #?????????????????????????????? | | ???????????????? #????###??????????????????????? | | ???????????????? ???? ??????????????????????? | | ????????????????? %#????#+#??????????????????????? | | ?????????????????# #????#/#??????????????????????? | | ####????????????##%##???#[#??????????????????????? | | #???????#+####!=]#####!#??????????????????????? | | ######### %% %*%+%!= !!#??????????????????????? | | %######!####h#??????????????????????? | | #????###??#h#??????????????????????? | | ############ #?????????# #??????????????????????? | | ???????????# #?????????# #??????????????????????? | | ???????????# #?????????#@#####??????????????????? | | ???????????# #?????????# #??????????????????? | | ???????????# #?????????# ### #??????????????????? | | ???????????# #?????????# #?#"#??????????????????? | | ???????????# #?????????# #?# ??????????????????? | | ???????????# #?????????###?#"""?????????????????? | | ???????????# #??????????????????????????????????? | | ???????????# ??????????????????????????????????? | | ???????????? ??????????????????????????????????? | | ????????????###??????????????????????????????????? | | ?????????????????????????????????????????????????? | | ?????????????????????????????????????????????????? | | ?????????????????????????????????????????????????? | | ?????????????????????????????????????????????????? | | ?????????????????????????????????????????????????? | | ?????????????????????????????????????????????????? | | ?????????????????????????????????????????????????? | | ?????????????????????????????????????????????????? | | ?????????????????????????????????????????????????? | | ?????????????????????????????????????????????????? | | ?????????????????????????????????????????????????? | | ?????????????????????????????????????????????????? | | ?????????????????????????????????????????????????? | | ?????????????????????????????????????????????????? | | ?????????????????????????????????????????????????? | +----------------------------------------------------+ Best States ------------- Heat Dissipation 38 Energy Generation 14 Energy Capacity 265 Matter Stores 300 Matter Capacity 300 Sight Range 16 Terrain Scan Range 16 Terrain Scan Density 10 Armor Coverage 600 Evasion (%) 62 Melee Accuracy 8 Recoil Reduction 3 Offensive Hacking 10 Relay Coupler Types 4 Relay Coupler Value 94 Item Schematics ----------------- Huge Storage Unit | -10/Materials | Hacked Hcp. Storage Unit | -10/Materials | Hacked Hpw. Tractor Beam | -9/Storage | Hacked Lrg. Storage Unit | -9/Storage | Hacked Robot Schematics ------------------ None Fabricated ------------ Nothing Alien Tech Used ----------------- None Achievements -------------- None Challenges ------------ None Game ------ Seed TacticalWeightRigger Manual? 0 Play Time 01:55:17 Cumulative 237.8 hours Start 2024.04.29 @ 01:17:43 End 2024.04.29 @ 03:35:47 Sessions 1 Manual Loads 0 Difficulty Rogue Special Mode None Game No. 60 Rogue 60 Adventurer 0 Explorer 0 Win Type - Total 15 Types 8/2/3/1/1/0/0/0/0 Lore% 53 Gallery% 75 Achievement% 66 Wizard Run 0 Options --------- Layout 1 ASCII 0 Keyboard 0 Movement Numpad Keybinds 0 Fullscreen 1 Font 24/Smallcaps Map View 50x35 Zoom Use 0% Tactical HUD 1 Map Filters NONE Filters NONE Steam 1 RUN: 23ec5a25-be4f-4d7d-9084-639744778d4d